bitfinex/quotes_BTCUSD_20250817
["timestamp","ask_amount","ask_price","bid_price","bid_amount"]
[1755389470605,0.002,117500.0,117490.0,0.2779213]
[1755389470815,0.002,117500.0,117490.0,0.32731559]
[1755389475834,0.17423276,117500.0,117490.0,0.2746813]
[1755389477465,0.17423276,117500.0,117490.0,0.2776213]
[1755389485337,0.17423276,117500.0,117490.0,0.02258]
[1755389485549,0.17721276,117500.0,117490.0,0.01749]
[1755389486669,0.19314665,117500.0,117490.0,0.01749]
[1755389490799,0.2465396,117500.0,117490.0,0.01749]
[1755389495463,0.19314665,117500.0,117490.0,0.01749]
[1755389498881,0.19016665,117500.0,117490.0,0.01749]
[1755389507004,0.19016828,117500.0,117490.0,0.01749]
[1755389515909,0.17423276,117500.0,117490.0,0.01749]
[1755389516128,0.19019299,117500.0,117490.0,0.01749]
[1755389521107,0.18817299,117500.0,117490.0,0.02263]
[1755389521399,0.18817469,117500.0,117490.0,0.19285725]
[1755389523580,0.18817469,117500.0,117490.0,0.02263]
[1755389524320,0.002,117500.0,117490.0,0.19498509]
[1755389524547,0.002,117500.0,117490.0,0.19285725]
[1755389524756,0.002,117500.0,117490.0,0.33141512]
[1755389533317,0.002,117500.0,117490.0,0.35699312]
[1755389533741,0.002,117500.0,117490.0,0.72127312]
[1755389535232,0.00049072,117510.0,117500.0,0.17021276]
[1755389535446,0.00049072,117510.0,117500.0,0.72555681]
[1755389535633,0.00049072,117510.0,117500.0,0.81336805]
[1755389536008,0.00049072,117510.0,117500.0,0.66873029]
[1755389536857,0.00149072,117510.0,117500.0,0.66973029]
[1755389537803,0.00149072,117510.0,117500.0,0.67073029]
[1755389540086,0.12852,117530.0,117500.0,0.67073029]
[1755389540298,0.12856905,117530.0,117510.0,0.00212747]
[1755389540521,0.12856905,117530.0,117510.0,0.00511747]
[1755389540942,0.12856905,117530.0,117510.0,0.03069247]
[1755389541550,0.12956905,117530.0,117510.0,0.03069247]
[1755389541955,0.12956905,117530.0,117510.0,0.09768125]
[1755389542116,0.12956905,117530.0,117510.0,0.07210625]
[1755389542539,0.12856905,117530.0,117510.0,0.07210625]
[1755389542781,0.13156905,117530.0,117510.0,0.07310625]
[1755389542981,0.13256905,117530.0,117510.0,0.07310625]
[1755389543163,0.13256905,117530.0,117510.0,0.00611747]
[1755389546479,0.0018,117520.0,117510.0,0.00808747]
[1755389547815,0.13156905,117530.0,117510.0,0.00808747]
[1755389548037,0.00304905,117530.0,117520.0,0.01948]
[1755389548248,4.905e-05,117530.0,117520.0,0.02145]
[1755389548455,4.905e-05,117530.0,117520.0,0.10626405]
[1755389549424,4.905e-05,117530.0,117520.0,0.12631384]
[1755389549628,0.00404905,117530.0,117520.0,0.13156842]
[1755389550466,4.905e-05,117530.0,117520.0,0.13056842]
[1755389550713,0.00204905,117530.0,117520.0,0.13156842]
[1755389551455,0.00204905,117530.0,117520.0,0.60008842]
[1755389551658,0.00204905,117530.0,117520.0,0.59583384]
[1755389552893,0.00204905,117530.0,117520.0,0.62140384]
[1755389553976,0.00204905,117530.0,117520.0,0.79158763]
[1755389607846,0.17221836,117530.0,117520.0,0.79158763]
[1755389611402,0.17401836,117530.0,117520.0,0.38306]
[1755389611621,0.30249836,117530.0,117520.0,0.001]
[1755389611830,0.31958183,117530.0,117520.0,0.01749]
[1755389612268,0.31846183,117530.0,117520.0,0.01749]
[1755389613275,0.31958183,117530.0,117520.0,0.01749]
[1755389613485,0.36855552,117530.0,117520.0,0.01749]
[1755389620171,0.3685198,117530.0,117520.0,0.01749]
[1755389620569,0.3685198,117530.0,117520.0,0.001]
[1755389620935,0.47078287,117530.0,117520.0,0.001]
[1755389621552,1.19636087,117530.0,117520.0,0.001]
[1755389628790,1.18043312,117530.0,117520.0,0.001]
[1755389629014,1.19522202,117530.0,117520.0,0.001]
[1755389629232,1.14624833,117530.0,117520.0,0.001]
[1755389629450,1.14624817,117530.0,117520.0,0.001]
[1755389631166,1.14624851,117530.0,117520.0,0.001]
[1755389632270,1.14624961,117530.0,117520.0,0.001]
[1755389640342,1.1522268,117530.0,117520.0,0.001]
[1755389641349,1.15222693,117530.0,117520.0,0.001]
[1755389641961,1.15222693,117530.0,117520.0,0.00399]
[1755389642486,1.23704817,117530.0,117520.0,0.00399]
[1755389643107,1.23704817,117530.0,117520.0,0.001]
[1755389643503,1.23704817,117530.0,117520.0,0.00399]
[1755389643711,1.15222693,117530.0,117520.0,0.00399]
[1755389644117,1.15042693,117530.0,117520.0,0.00595]
[1755389644840,1.15222693,117530.0,117520.0,0.00595]
[1755389646201,1.15222693,117530.0,117520.0,0.00399]
[1755389648689,1.15227529,117530.0,117520.0,0.00399]
[1755389648916,1.23709653,117530.0,117520.0,0.00399]
[1755389651536,1.23111921,117530.0,117520.0,0.00399]
[1755389651741,1.23711502,117530.0,117520.0,0.00399]
[1755389652206,1.23711509,117530.0,117520.0,0.00399]
[1755389652522,1.15229385,117530.0,117520.0,0.00399]
[1755389653358,1.15229385,117530.0,117520.0,0.00595]
[1755389655099,1.15229385,117530.0,117520.0,0.00399]
[1755389658187,1.15229385,117530.0,117520.0,0.001]
[1755389659338,1.15341385,117530.0,117520.0,0.001]
[1755389659727,1.23823509,117530.0,117520.0,0.001]
[1755389660770,1.23711509,117530.0,117520.0,0.001]
[1755389661408,1.0328038,117530.0,117520.0,0.001]
[1755389661656,1.20297311,117530.0,117520.0,0.001]
[1755389662227,1.17739511,117530.0,117520.0,0.001]
[1755389663626,1.17739539,117530.0,117520.0,0.001]
[1755389666637,1.17739561,117530.0,117520.0,0.001]
[1755389672544,1.17739491,117530.0,117520.0,0.001]
[1755389677911,1.17739491,117530.0,117520.0,0.00418]
[1755389692930,1.15544069,117530.0,117520.0,0.00418]
[1755389693184,1.177397,117530.0,117520.0,0.00418]
[1755389693409,1.17140892,117530.0,117520.0,0.00418]
[1755389693621,1.17739706,117530.0,117520.0,0.00418]
[1755389694263,1.17739706,117530.0,117520.0,0.001]
[1755389694944,1.17739706,117530.0,117520.0,0.00418]
[1755389695642,1.17401488,117530.0,117520.0,0.00418]
[1755389696644,1.08919364,117530.0,117520.0,0.00418]
[1755389700530,0.9113747,117530.0,117520.0,0.00418]
[1755389700752,0.9113747,117530.0,117520.0,0.02067]
[1755389700753,1.01649754,117530.0,117520.0,0.02067]
[1755389701838,0.31649754,117530.0,117520.0,0.02067]
[1755389708394,0.31469754,117530.0,117520.0,0.02067]
[1755389710403,0.31469754,117530.0,117520.0,0.01749]
[1755389718561,0.31466144,117530.0,117520.0,0.01749]
[1755389722438,0.31646144,117530.0,117520.0,0.02055]
[1755389722866,0.31646144,117530.0,117520.0,0.02268]
[1755389727473,0.30052931,117530.0,117520.0,0.02268]
[1755389727683,0.316478,117530.0,117520.0,0.02268]
[1755389730501,0.31649566,117530.0,117520.0,0.02268]
[1755389739946,0.31649566,117530.0,117520.0,0.02055]
[1755389740572,0.31649566,117530.0,117520.0,0.01749]
[1755389740714,0.38628725,117530.0,117520.0,0.001]
[1755389741220,0.41186425,117530.0,117520.0,0.001]
[1755389741582,0.41784955,117530.0,117520.0,0.001]
[1755389742177,0.41186425,117530.0,117520.0,0.001]
[1755389742380,1.11186425,117530.0,117520.0,0.001]
[1755389742588,1.11784821,117530.0,117520.0,0.001]
[1755389743169,1.11186425,117530.0,117520.0,0.001]
[1755389745363,1.08883441,117530.0,117520.0,0.001]
[1755389746102,1.17364846,117530.0,117520.0,0.001]
[1755389754163,1.17250325,117530.0,117520.0,0.001]
[1755389754495,1.1725027,117530.0,117520.0,0.001]
[1755389757161,1.17250212,117530.0,117520.0,0.001]
[1755389764238,1.17848119,117530.0,117520.0,0.001]
[1755389767962,1.17849143,117530.0,117520.0,0.001]
[1755389770691,1.15656211,117530.0,117520.0,0.001]
[1755389770845,1.17851319,117530.0,117520.0,0.001]
[1755389771556,6.35001619,117530.0,117520.0,1e-08]
[1755389771800,6.42853637,117530.0,117520.0,1e-08]
[1755389773366,0.17019828,117510.0,117500.0,0.01943]
[1755389773637,0.8861627,117510.0,117500.0,0.01649]
[1755389773919,0.8861627,117510.0,117500.0,0.04145765]
[1755389773920,1.0148827,117510.0,117500.0,0.04145765]
[1755389774154,0.99891828,117510.0,117500.0,0.21667041]
[1755389774395,0.99891828,117510.0,117500.0,0.21454276]
[1755389774634,0.99891828,117510.0,117500.0,0.21554276]
[1755389774875,0.87119828,117510.0,117500.0,0.21554276]
[1755389775103,0.17119828,117510.0,117500.0,0.21554276]
[1755389788646,0.001,117510.0,117500.0,0.21554276]
[1755389790431,0.001,117510.0,117500.0,0.34149156]
[1755389790947,0.001,117510.0,117500.0,0.36706656]
[1755389793410,0.001,117510.0,117500.0,0.49586656]
[1755389795502,0.001,117510.0,117500.0,0.47302656]
[1755389795763,0.17299828,117510.0,117500.0,0.048065]
[1755389795984,0.17299828,117510.0,117500.0,0.00394]
[1755389796201,0.17299828,117510.0,117500.0,0.01749]
[1755389796416,0.40815368,117510.0,117500.0,0.01749]
[1755389796641,0.49297492,117510.0,117500.0,0.01749]
[1755389796855,0.27376048,117510.0,117500.0,0.01749]
[1755389797277,0.56716736,117510.0,117500.0,0.01749]
[1755389797489,0.27488048,117510.0,117500.0,0.01749]
[1755389798632,0.97488048,117510.0,117500.0,0.01749]
[1755389799326,0.89005924,117510.0,117500.0,0.01749]
[1755389799925,0.88893924,117510.0,117500.0,0.01749]
[1755389800126,0.89728641,117510.0,117500.0,0.01749]
[1755389800354,0.89728408,117510.0,117500.0,0.01749]
[1755389804067,0.88713691,117510.0,117500.0,0.02258]
[1755389804998,0.89579643,117510.0,117500.0,0.02258]
[1755389805249,0.89759643,117510.0,117500.0,0.02258]
[1755389805999,0.88713691,117510.0,117500.0,0.31486688]
[1755389806364,0.82984,117510.0,117500.0,0.48507964]
[1755389807191,0.701,117510.0,117500.0,0.65471493]
[1755389807647,0.701,117510.0,117500.0,0.68029093]
[1755389807860,0.001,117510.0,117500.0,0.68029093]
[1755389815461,0.001,117510.0,117500.0,0.38800405]
[1755389815681,0.001,117510.0,117500.0,0.68029093]
[1755389817994,0.001,117510.0,117500.0,0.38800405]
[1755389818218,0.001,117510.0,117500.0,0.68029093]
[1755389821552,0.001,117510.0,117500.0,0.38800405]
[1755389821774,0.001,117510.0,117500.0,0.68029093]
[1755389822004,0.17299828,117510.0,117500.0,0.01749]
[1755389822755,0.17299828,117510.0,117500.0,0.23667301]
[1755389824885,0.17299828,117510.0,117500.0,0.01749]
[1755389825098,0.17299828,117510.0,117500.0,0.0206]
[1755389825302,0.17299828,117510.0,117500.0,0.02264]
[1755389828790,0.17299828,117510.0,117500.0,0.0206]
[1755389829725,0.17299828,117510.0,117500.0,0.01749]
[1755389832592,0.18894264,117510.0,117500.0,0.01749]
[1755389836773,0.53008811,117510.0,117500.0,0.01749]
[1755389836980,0.53120811,117510.0,117500.0,0.01749]
[1755389837598,0.2378513,117510.0,117500.0,0.01749]
[1755389838208,0.18894264,117510.0,117500.0,0.01749]
[1755389838463,0.88894264,117510.0,117500.0,0.01749]
[1755389843360,0.89006264,117510.0,117500.0,0.01749]
[1755389844965,0.88894264,117510.0,117500.0,0.01749]
[1755389845135,1.18117945,117510.0,117500.0,0.01749]
[1755389845349,1.26600069,117510.0,117500.0,0.01749]
[1755389845554,1.26712069,117510.0,117500.0,0.01749]
[1755389846367,1.25117633,117510.0,117500.0,0.01749]
[1755389846576,1.2671225,117510.0,117500.0,0.01749]
[1755389848104,1.2660025,117510.0,117500.0,0.01749]
[1755389849340,1.2660025,117510.0,117500.0,0.001]
[1755389849548,1.2671225,117510.0,117500.0,0.001]
[1755389850287,1.2660025,117510.0,117500.0,0.01749]
[1755389850468,0.97376569,117510.0,117500.0,0.01749]
[1755389854294,1.36938557,117510.0,117500.0,0.001]
[1755389854494,1.84424777,117510.0,117500.0,0.001]
[1755389855348,1.84425527,117510.0,117500.0,0.001]
[1755389858062,1.86983927,117510.0,117500.0,0.001]
[1755389858858,1.86871927,117510.0,117500.0,0.001]
[1755389861310,0.99538419,117510.0,117500.0,0.00592]
[1755389861531,1.11820524,117510.0,117500.0,0.00592]
[1755389864253,1.11820556,117510.0,117500.0,0.00592]
[1755389865344,1.11820798,117510.0,117500.0,0.00592]
[1755389866656,1.01594491,117510.0,117500.0,0.02241]
[1755389869408,0.31594491,117510.0,117500.0,0.02241]
[1755389870406,0.31594936,117510.0,117500.0,0.02241]
[1755389872322,1.01594936,117510.0,117500.0,0.02241]
[1755389873251,1.01594937,117510.0,117500.0,0.02241]
[1755389873681,1.01594934,117510.0,117500.0,0.02241]
[1755389875841,0.88714934,117510.0,117500.0,0.19262276]
[1755389876031,0.84567106,117510.0,117500.0,0.48488209]
[1755389876184,0.82972,117510.0,117500.0,0.48488209]
[1755389876821,0.82972,117510.0,117500.0,0.55039286]
[1755389877032,0.82972,117510.0,117500.0,0.48488209]
[1755389877230,0.99991828,117510.0,117500.0,0.48488209]
[1755389877959,0.29991828,117510.0,117500.0,0.48488209]
[1755389884480,0.29991828,117510.0,117500.0,0.31466933]
[1755389885707,0.29991828,117510.0,117500.0,0.02241]
[1755389886739,0.29991828,117510.0,117500.0,0.24157129]
[1755389887862,0.29991828,117510.0,117500.0,0.02241]
[1755389888018,0.29991828,117510.0,117500.0,0.24157129]
[1755389897959,0.29991828,117510.0,117500.0,0.41178405]
[1755389903551,0.29991828,117510.0,117500.0,0.24157129]
[1755389904746,0.29991828,117510.0,117500.0,0.41178405]
[1755389905310,0.31588539,117510.0,117500.0,0.41178405]
[1755389913394,0.29991828,117510.0,117500.0,0.41178405]
[1755389913606,0.31588718,117510.0,117500.0,0.41178405]
[1755389913801,0.29991828,117510.0,117500.0,0.41178405]
[1755389914005,0.31588718,117510.0,117500.0,0.41178405]
[1755389916411,0.31588669,117510.0,117500.0,0.41178405]
[1755389916935,0.18716669,117510.0,117500.0,0.41178405]
[1755389917164,0.001,117510.0,117500.0,1.24511826]
[1755389918029,0.001,117510.0,117500.0,1.27069426]
[1755389918462,0.1286,117520.0,117510.0,0.18668828]
[1755389918716,0.1286,117520.0,117510.0,0.41097957]
[1755389919316,0.17160973,117530.0,117520.0,0.18667379]
[1755389919483,0.30020973,117530.0,117520.0,0.40797508]
[1755389919691,0.30020973,117530.0,117520.0,0.41096508]
[1755389919915,1.00020973,117530.0,117520.0,0.41096508]
[1755389920890,1.00120973,117530.0,117520.0,0.41196508]
[1755389921323,0.701,117530.0,117520.0,0.41196508]
[1755389921467,0.701,117530.0,117520.0,0.77758876]
[1755389921698,0.1296,117530.0,117520.0,0.71594042]
[1755389922914,0.1296,117530.0,117520.0,0.74151342]
[1755389923184,0.001,117530.0,117520.0,0.87011342]
[1755389936571,0.001,117530.0,117520.0,0.65095213]
[1755389936978,0.001,117530.0,117520.0,0.73394167]
[1755389937719,0.001,117530.0,117520.0,0.95310296]
[1755389939769,0.001,117530.0,117520.0,0.43179084]
[1755389939968,0.17296931,117530.0,117520.0,0.65095213]
[1755389940099,0.17296931,117530.0,117520.0,0.51722213]
[1755389940311,0.17296931,117530.0,117520.0,0.29806084]
[1755389940513,0.17296931,117530.0,117520.0,0.30105084]
[1755389940702,0.17296931,117530.0,117520.0,0.29806084]
[1755389941118,0.17296931,117530.0,117520.0,0.30105084]
[1755389941533,0.17296931,117530.0,117520.0,0.52235213]
[1755389942412,0.17296931,117530.0,117520.0,0.29806084]
[1755389943115,0.17296931,117530.0,117520.0,0.30105084]
[1755389943612,0.17296931,117530.0,117520.0,0.52021213]
[1755389945670,0.17296931,117530.0,117520.0,0.52218213]
[1755389946699,0.17296931,117530.0,117520.0,0.51722213]
[1755389947136,0.17296931,117530.0,117520.0,0.52022213]
[1755389947610,0.17296931,117530.0,117520.0,0.35003834]
[1755389947821,0.17296931,117530.0,117520.0,0.10530405]
[1755389948249,0.17296931,117530.0,117520.0,0.10230405]
[1755389950149,0.17296931,117530.0,117520.0,0.10530405]
[1755389952444,0.17296931,117530.0,117520.0,0.13087705]
[1755389954969,0.47729002,117530.0,117520.0,0.01749]
[1755389955870,1.17729002,117530.0,117520.0,0.01749]
[1755389956517,1.17841002,117530.0,117520.0,0.01749]
[1755389959459,1.17729002,117530.0,117520.0,0.01749]
[1755389960430,1.17841002,117530.0,117520.0,0.001]
[1755389960633,1.17841002,117530.0,117520.0,0.01749]
[1755389960815,1.17841002,117530.0,117520.0,0.001]
[1755389961015,1.17841002,117530.0,117520.0,0.01749]
[1755389961266,1.17841002,117530.0,117520.0,0.001]
[1755389961733,1.17841002,117530.0,117520.0,0.01749]
[1755389962148,1.17729002,117530.0,117520.0,0.01749]
[1755389963091,1.17726774,117530.0,117520.0,0.01749]
[1755389965582,1.17726525,117530.0,117520.0,0.01749]
[1755389968227,1.17546525,117530.0,117520.0,0.01749]
[1755389968432,0.47546525,117530.0,117520.0,0.01749]
[1755389969462,0.49291427,117530.0,117520.0,0.001]
[1755389969687,0.79688961,117530.0,117520.0,0.001]
[1755389970770,0.82246861,117530.0,117520.0,0.001]
[1755389971201,1.52246861,117530.0,117520.0,0.001]
[1755389971640,1.52246525,117530.0,117520.0,0.001]
[1755389971974,1.5222506,117530.0,117520.0,0.001]
[1755389973141,1.6508506,117530.0,117520.0,0.001]
[1755389977214,1.70653893,117530.0,117520.0,0.001]
[1755389981438,1.6508506,117530.0,117520.0,0.001]
[1755389981656,1.65682592,117530.0,117520.0,0.001]
[1755389985545,1.99682592,117530.0,117520.0,0.001]
[1755389989260,1.99682886,117530.0,117520.0,0.001]
[1755389990972,1.99682853,117530.0,117520.0,0.001]
[1755389995112,1.99683934,117530.0,117520.0,0.001]
[1755389997281,2.01520768,117530.0,117520.0,0.001]
[1755389997501,1.99683934,117530.0,117520.0,0.001]
[1755389998397,2.01521004,117530.0,117520.0,0.001]
[1755390000513,2.69562922,117530.0,117520.0,1e-08]
[1755390000734,7.52602299,117530.0,117520.0,1e-08]
[1755390001758,6.87153912,117530.0,117520.0,1e-08]
[1755390001972,7.52902299,117530.0,117520.0,1e-08]
[1755390002167,7.52902299,117530.0,117490.0,0.08415186]
[1755390002168,0.18766178,117500.0,117490.0,0.08415186]
[1755390002361,1.50680079,117500.0,117490.0,0.08415186]
[1755390003222,1.06847821,117500.0,117490.0,0.08415186]
[1755390003484,1.50680079,117500.0,117490.0,0.08415186]
[1755390003681,1.3085742,117500.0,117490.0,0.08615186]
[1755390003882,1.3095742,117500.0,117490.0,0.08615186]
[1755390004084,1.47978696,117500.0,117490.0,0.08615186]
[1755390004685,1.45456454,117500.0,117490.0,0.01949]
[1755390009237,1.45456454,117500.0,117490.0,0.003]
[1755390009238,1.53937859,117500.0,117490.0,0.003]
[1755390009660,1.56496359,117500.0,117490.0,0.003]
[1755390018726,1.53937859,117500.0,117490.0,0.003]
[1755390019906,0.83937859,117500.0,117490.0,0.003]
[1755390020524,0.91816671,117500.0,117490.0,0.003]
[1755390022788,1.61816671,117500.0,117490.0,0.003]
[1755390023298,1.53937859,117500.0,117490.0,0.003]
[1755390025715,1.53937859,117500.0,117490.0,0.00617]
[1755390026299,1.52342939,117500.0,117490.0,0.00617]
[1755390026514,1.10105932,117500.0,117490.0,0.00617]
[1755390026768,1.5393819,117500.0,117490.0,0.00617]
[1755390026947,1.5393821,117500.0,117490.0,0.00617]
[1755390030247,1.55683112,117500.0,117490.0,0.003]
[1755390030464,1.11850854,117500.0,117490.0,0.003]
[1755390030675,1.55683112,117500.0,117490.0,0.003]
[1755390031104,1.11850854,117500.0,117490.0,0.003]
[1755390031276,1.11850854,117500.0,117490.0,0.00617]
[1755390031516,1.56281707,117500.0,117490.0,0.00617]
[1755390032320,1.56281744,117500.0,117490.0,0.00617]
[1755390033803,1.56281744,117500.0,117490.0,0.003]
[1755390035041,1.4882473,117500.0,117490.0,0.003]
[1755390035267,1.48824866,117500.0,117490.0,0.003]
[1755390041195,1.48827008,117500.0,117490.0,0.003]
[1755390041378,1.49007008,117500.0,117490.0,0.003]
[1755390042655,1.0517475,117500.0,117490.0,0.003]
[1755390042840,1.49007008,117500.0,117490.0,0.003]
[1755390046369,1.57489132,117500.0,117490.0,0.003]
[1755390046550,1.63057965,117500.0,117490.0,0.003]
[1755390048027,1.54575841,117500.0,117490.0,0.003]
[1755390048263,6.9364227,117500.0,117490.0,0.003]
[1755390048482,6.74049141,117500.0,117490.0,0.003]
[1755390048707,6.76332318,117500.0,117490.0,0.003]
[1755390049049,6.76332318,117500.0,117490.0,0.002]
[1755390049267,6.84814442,117500.0,117490.0,0.002]
[1755390049492,6.84914442,117500.0,117490.0,0.002]
[1755390049713,6.84912864,117500.0,117490.0,0.002]
[1755390049912,6.82263066,117500.0,117490.0,0.002]
[1755390050473,0.18767627,117490.0,117480.0,0.0202]
[1755390050711,6.23814817,117490.0,117480.0,0.0202]
[1755390050863,1.40776517,117490.0,117480.0,0.0202]
[1755390051064,1.40776059,117490.0,117480.0,0.0202]
[1755390051660,1.40776059,117490.0,117480.0,0.02069072]
[1755390052093,1.40976059,117490.0,117480.0,0.02169072]
[1755390055582,1.39379983,117490.0,117480.0,0.02169072]
[1755390055783,1.40974835,117490.0,117480.0,0.02169072]
[1755390061003,1.40974835,117490.0,117480.0,0.02472072]
[1755390061187,1.40974576,117490.0,117480.0,0.02472072]
[1755390063487,1.34657823,117490.0,117480.0,0.02472072]
[1755390063766,1.34657527,117490.0,117480.0,0.02472072]
[1755390066661,1.34656709,117490.0,117480.0,0.02472072]
[1755390069639,1.38557746,117490.0,117480.0,0.02472072]
[1755390071278,1.21535021,117490.0,117480.0,0.02472072]
[1755390071477,1.38557746,117490.0,117480.0,0.02472072]
[1755390072415,1.47040102,117490.0,117480.0,0.02472072]
[1755390074343,1.38557978,117490.0,117480.0,0.02472072]
[1755390085197,1.43671978,117490.0,117480.0,0.02472072]
[1755390085406,1.38557978,117490.0,117480.0,0.02472072]
[1755390086598,1.38557978,117490.0,117480.0,0.024591]
[1755390087040,1.38558745,117490.0,117480.0,0.024591]
[1755390088904,1.47040869,117490.0,117480.0,0.024591]
[1755390089084,1.38558745,117490.0,117480.0,0.024591]
[1755390090066,1.38561413,117490.0,117480.0,0.021561]
[1755390092494,1.72561413,117490.0,117480.0,0.021561]
[1755390093250,1.72673413,117490.0,117480.0,0.021561]
[1755390093452,1.72561413,117490.0,117480.0,0.021561]
[1755390093662,1.81043537,117490.0,117480.0,0.021561]
[1755390095131,1.83693335,117490.0,117480.0,0.021561]
[1755390095345,1.81043537,117490.0,117480.0,0.021561]
[1755390095987,1.81043352,117490.0,117480.0,0.021561]
[1755390097009,1.81043352,117490.0,117480.0,0.024611]
[1755390098493,1.81043352,117490.0,117480.0,0.021561]
[1755390100409,1.59127223,117490.0,117480.0,0.021561]
[1755390100591,1.81043352,117490.0,117480.0,0.021561]
[1755390100765,2.02959481,117490.0,117480.0,0.021561]
[1755390101558,2.05115581,117490.0,117480.0,0.021561]
[1755390102313,1.61283323,117490.0,117480.0,0.021561]
[1755390102618,2.05115581,117490.0,117480.0,0.021561]
[1755390103318,2.05115581,117490.0,117480.0,0.02136631]
[1755390104044,1.52801199,117490.0,117480.0,0.02136631]
[1755390104260,1.74717328,117490.0,117480.0,0.02136631]
[1755390106182,1.52801199,117490.0,117480.0,0.02136631]
[1755390106385,1.74717328,117490.0,117480.0,0.02136631]
[1755390109899,1.74717328,117490.0,117480.0,0.0212365]
[1755390110127,1.83199452,117490.0,117480.0,0.0212365]
[1755390110902,1.83197997,117490.0,117480.0,0.0212365]
[1755390111331,1.83198003,117490.0,117480.0,0.01962263]
[1755390111552,1.79296966,117490.0,117480.0,0.01962263]
[1755390112068,1.57380837,117490.0,117480.0,0.01962263]
[1755390112221,1.79296966,117490.0,117480.0,0.02267263]
[1755390116633,1.79296631,117490.0,117480.0,0.02267263]
[1755390116841,1.79296695,117490.0,117480.0,0.02267263]
[1755390117205,1.7770156,117490.0,117480.0,0.02267263]
[1755390117411,1.79296734,117490.0,117480.0,0.02267263]
[1755390120219,1.81134595,117490.0,117480.0,0.02267263]
[1755390121617,1.59218466,117490.0,117480.0,0.02267263]
[1755390121830,1.72652471,117490.0,117480.0,0.02470263]
[1755390122058,1.7063461,117490.0,117480.0,0.02470263]
[1755390122277,1.7081461,117490.0,117480.0,0.02470263]
[1755390122499,1.92730739,117490.0,117480.0,0.02267263]
[1755390122687,1.7081461,117490.0,117480.0,0.02267263]
[1755390122938,1.81134896,117490.0,117480.0,0.02267263]
[1755390123781,2.03051025,117490.0,117480.0,0.02267263]
[1755390124196,1.81134896,117490.0,117480.0,0.02267263]
[1755390128478,1.59218767,117490.0,117480.0,0.02267263]
[1755390128727,1.50736643,117490.0,117480.0,0.02478263]
[1755390129157,1.72472772,117490.0,117480.0,0.02478263]
[1755390130134,1.59552772,117490.0,117480.0,0.02478263]
[1755390130341,1.71890597,117490.0,117480.0,0.02478263]
[1755390130551,1.72489053,117490.0,117480.0,0.02478263]
[1755390130767,1.80971177,117490.0,117480.0,0.02478263]
[1755390131213,1.79133015,117490.0,117480.0,0.02478263]
[1755390131861,1.57216886,117490.0,117480.0,0.02478263]
[1755390132090,1.79133015,117490.0,117480.0,0.02478263]
[1755390132751,1.33642662,117490.0,117480.0,0.02478263]
[1755390132966,1.12578662,117490.0,117480.0,0.24394392]
[1755390133668,1.11980206,117490.0,117480.0,0.02478263]
[1755390134503,1.10235304,117490.0,117480.0,0.02478263]
[1755390136079,1.10235304,117490.0,117480.0,0.24394392]
[1755390136273,1.10234633,117490.0,117480.0,0.24394392]
[1755390136533,1.18716757,117490.0,117480.0,0.02478263]
[1755390136756,1.10234633,117490.0,117480.0,0.02478263]
[1755390140497,1.14103081,117490.0,117480.0,0.02478263]
[1755390143599,1.01753228,117490.0,117480.0,0.04127263]
[1755390143841,1.01745228,117490.0,117480.0,0.26043392]
[1755390144064,1.01745228,117490.0,117480.0,0.04127263]
[1755390144284,1.10227352,117490.0,117480.0,0.26043392]
[1755390144723,1.01745228,117490.0,117480.0,0.26043392]
[1755390148315,1.01745228,117490.0,117480.0,0.04127263]
[1755390148552,1.01745228,117490.0,117480.0,0.26043392]
[1755390150450,0.31745228,117490.0,117480.0,0.26043392]
[1755390153605,1.01745228,117490.0,117480.0,0.26043392]
[1755390153805,1.00150725,117490.0,117480.0,0.26043392]
[1755390154040,1.01743333,117490.0,117480.0,0.04127263]
[1755390154238,1.01743333,117490.0,117480.0,0.26256194]
[1755390154451,1.01743333,117490.0,117480.0,0.26043392]
[1755390155439,1.01743333,117490.0,117480.0,0.04127263]
[1755390155645,1.01743333,117490.0,117480.0,0.26256194]
[1755390155857,1.01743333,117490.0,117480.0,0.26043392]
[1755390158499,1.01739333,117490.0,117480.0,0.64983695]
[1755390160351,1.01739333,117490.0,117480.0,0.43067566]
[1755390163601,1.01739333,117490.0,117480.0,0.64983695]
[1755390164731,1.01739333,117490.0,117480.0,0.43067566]
[1755390167983,0.71792608,117490.0,117480.0,0.64983695]
[1755390168191,0.83112,117490.0,117480.0,0.64983695]
[1755390168415,0.83112,117490.0,117480.0,0.67541995]
[1755390169056,0.13012,117490.0,117480.0,0.67541995]
[1755390169514,0.13012,117490.0,117480.0,0.67641995]
[1755390169806,0.30034725,117490.0,117480.0,0.67641995]
[1755390170367,0.29934725,117490.0,117480.0,0.67541995]
[1755390170728,0.30034725,117490.0,117480.0,0.67741995]
[1755390176895,0.13012,117490.0,117480.0,0.67741995]
[1755390179585,0.13016,117490.0,117480.0,1.31622149]
[1755390181655,0.13016,117490.0,117480.0,1.231434]
[1755390183549,0.001,117490.0,117480.0,1.231434]
[1755390203643,0.10065202,117500.0,117490.0,0.18671725]
[1755390203846,0.80245202,117500.0,117490.0,0.53487854]
[1755390204185,0.80245202,117500.0,117490.0,0.53781854]
[1755390204680,0.80245202,117500.0,117490.0,0.53985854]
[1755390205112,0.80345202,117500.0,117490.0,0.62567978]
[1755390207894,0.80345202,117500.0,117490.0,0.62069978]
[1755390208039,0.80345202,117500.0,117490.0,0.49169978]
[1755390208447,0.80345202,117500.0,117490.0,0.49463978]
[1755390210542,0.80345202,117500.0,117490.0,0.40981854]
[1755390212145,0.80345202,117500.0,117490.0,0.53881854]
[1755390213972,0.80345202,117500.0,117490.0,0.40981854]
[1755390215679,0.80345202,117500.0,117490.0,0.19065725]
[1755390215949,0.80345202,117500.0,117490.0,0.40981854]
[1755390216915,0.80345202,117500.0,117490.0,0.01749]
[1755390217153,0.80345202,117500.0,117490.0,0.23665129]
[1755390221616,0.80345202,117500.0,117490.0,0.01749]
[1755390221824,0.80345202,117500.0,117490.0,0.23665129]
[1755390222258,0.80345202,117500.0,117490.0,0.40687854]
[1755390223742,0.80345202,117500.0,117490.0,0.18771725]
[1755390223957,0.80345202,117500.0,117490.0,0.40687854]
[1755390226706,0.80345202,117500.0,117490.0,0.18771725]
[1755390226913,0.80345202,117500.0,117490.0,0.40687854]
[1755390229040,0.80345202,117500.0,117490.0,0.18771725]
[1755390229245,0.80345202,117500.0,117490.0,0.40687854]